[Event "FIDE Chesscom Grand Swiss 2019"]
[Site "Douglas-Isle of Man"]
[Date "2019.10.12"]
[Round "3.30"]
[White "Bachmann, Axel"]
[Black "Lei, Tingjie"]
[Result "1/2-1/2"]
[ECO "A13"]
[WhiteElo "2629"]
[BlackElo "2469"]
[Annotator "RC"]
[PlyCount "114"]
[EventDate "2019.10.10"]
[EventType "swiss"]
[EventCountry "GBR"]
[SourceTitle "playchess.com"]
[Source "ChessBase"]
[SourceQuality "1"]
[TimeControl "40/6000+30:20/3000+30:900+30"]

1. Nf3 {[%emt 0:00:00]} d5 {[%emt 0:00:00]} 2. e3 {[%emt 0:00:23]} Nf6 {[%emt 0:00:09]} 3. c4 {[%emt 0:00:06]} e6 {[%emt 0:00:54]} 4. b3 {[%emt 0:00:12]} b6 {[%emt 0:02:01]} 5. Bb2 {[%emt 0:00:07]} Bd6 {[%emt 0:02:27]} 6. Nc3 {[%emt 0:01:40]} a6 {[%emt 0:01:27]} 7. cxd5 {[%emt 0:00:27]} exd5 {[%emt 0:00:07]} 8. d4 {[%emt 0:00:08]} Nbd7 {[%emt 0:02:56]} 9. g3 {[%emt 0:00:11]} O-O {[%emt 0:01:00]} 10. Bg2 {[%emt 0:01:45]} Re8 {[%emt 0:01:24]} 11. O-O {[%emt 0:00:09]} Bb7 {[%emt 0:00:30]} 12. Rc1 {[%emt 0:03:33]} Rc8 {[%emt 0:01:31]} 13. Ne2 {[%emt 0:12:03]} c5 {[%emt 0:11:44]} 14. dxc5 {[%emt 0:00:34]} bxc5 {[%emt 0:00:11]} 15. Rc2 {[%emt 0:14:08]} a5 {[%emt 0:12:19]} 16. Nf4 {[%emt 0:15:51]} a4 {[%emt 0:07:29]} 17. Nh4 {[%emt 0:04:15]} axb3 {[%emt 0:09:27]} 18. axb3 {[%emt 0:00:17]} Bxf4 {[%emt 0:00:30]} 19. gxf4 {[%emt 0:00:08]} Qb6 {[%emt 0:10:15]} 20. Nf5 {[%emt 0:02:43]} Rb8 {[%emt 0:12:48]} 21. b4 {[%emt 0:24:58]} Qxb4 {[%emt 0:05:46]} 22. Nd6 {[%emt 0:00:38]} Re6 {[%emt 0:07:14]} 23. Nxb7 {[%emt 0:07:42]} Qxb7 {[%emt 0:02:47]} 24. Bxf6 {[%emt 0:00:14]} Nxf6 {[%emt 0:00:05]} 25. Rxc5 {[%emt 0:00:06]} Qb4 {[%emt 0:05:17]} 26. Qc2 {[%emt 0:01:01]} Rd6 {[%emt 0:03:35]} 27. Rd1 {[%emt 0:00:16]} h6 {[%emt 0:00:49]} 28. Bxd5 {[%emt 0:08:37]} Rbd8 {[%emt 0:03:09]} 29. Rb1 {[%emt 0:00:29]} Qa3 {[%emt 0:00:25]} 30. Bf3 {[%emt 0:00:55]} Qa6 {[%emt 0:01:54]} 31. Rc7 {[%emt 0:02:50]} Nd5 {[%emt 0:00:25]} 32. Rcb7 {[%emt 0:00:11]} Nf6 {[%emt 0:01:34]} 33. Be2 {[%emt 0:03:28]} Qc6 {[%emt 0:01:11]} 34. Qxc6 {[%emt 0:04:13]} Rxc6 {[%emt 0:00:04]} 35. R1b4 {[%emt 0:00:19]} Rc2 {[%emt 0:01:57]} 36. Rb8 {[%emt 0:01:55]} Rcd2 {[%emt 0:01:13]} 37. Bf3 {[%emt 0:01:17]} g6 {[%emt 0:00:21]} 38. R8b7 {[%emt 0:00:38]} Kg7 {[%emt 0:00:48]} 39. h4 {[%emt 0:00:30]} h5 {[%emt 0:01:01]} 40. Rc4 {[%emt 0:00:32]} R8d7 {[%emt 0:00:26]} 41. Rxd7 {[%emt 0:12:07]} Nxd7 {[%emt 0:01:09]} 42. Rc7 {[%emt 0:00:53]} Nf6 {[%emt 0:03:55]} 43. Rc5 {[%emt 0:03:05]} Nd7 {[%emt 0:02:43]} 44. Rg5 {[%emt 0:03:01]} Kf6 {[%emt 0:00:14]} 45. f5 {[%emt 0:11:17]} gxf5 {[%emt 0:03:56]} 46. Bxh5 {[%emt 0:02:53]} Ne5 {[%emt 0:00:04]} 47. Rg2 {[%emt 0:04:31]} Ng6 {[%emt 0:08:09]} 48. Rh2 {[%emt 0:01:46]} f4 {[%emt 0:02:48]} 49. e4 {[%emt 0:00:23]} Ne5 {[%emt 0:00:04]} 50. Kg2 {[%emt 0:02:30]} Rd4 {[%emt 0:06:03]} 51. Bf3 {[%emt 0:00:12]} Rd3 {[%emt 0:00:07]} 52. Rh3 {[%emt 0:00:07]} Kg6 {[%emt 0:02:02]} 53. Bg4 {[%emt 0:00:10]} Rxh3 {[%emt 0:05:37]} 54. Kxh3 {[%emt 0:00:07]} Kh6 {[%emt 0:00:03]} 55. Bd1 {[%emt 0:00:19]} Kg6 {[%emt 0:00:08]} 56. Kg2 {[%emt 0:00:20]} Kh6 {[%emt 0:00:07]} 57. Kg1 {[%emt 0:00:18]} Ng6 {[%emt 0:03:32]} 1/2-1/2

[Event "FIDE Chesscom Grand Swiss 2019"]
[Site "Douglas-Isle of Man"]
[Date "2019.10.12"]
[Round "3.31"]
[White "Parligras, Mircea-Emilian"]
[Black "Ushenina, Anna"]
[Result "1-0"]
[ECO "A17"]
[WhiteElo "2629"]
[BlackElo "2431"]
[Annotator "RC"]
[PlyCount "121"]
[EventDate "2019.10.10"]
[EventType "swiss"]
[EventCountry "GBR"]
[SourceTitle "playchess.com"]
[Source "ChessBase"]
[SourceQuality "1"]
[TimeControl "40/6000+30:20/3000+30:900+30"]

1. Nf3 {[%emt 0:00:00]} Nf6 {[%emt 0:01:21]} 2. c4 {[%emt 0:00:00]} e6 {[%emt 0:00:20]} 3. Nc3 {[%emt 0:00:14]} d5 {[%emt 0:00:14]} 4. e3 {[%emt 0:00:23]} dxc4 {[%emt 0:01:18]} 5. Bxc4 {[%emt 0:00:08]} a6 {[%emt 0:00:14]} 6. O-O {[%emt 0:01:26]} c5 {[%emt 0:20:04]} 7. b3 {[%emt 0:03:41]} Nc6 {[%emt 0:15:41]} 8. Bb2 {[%emt 0:00:17]} Be7 {[%emt 0:02:58]} 9. Qc2 {[%emt 0:07:04]} b6 {[%emt 0:03:24]} 10. Rfd1 {[%emt 0:13:03]} Bb7 {[%emt 0:06:29]} 11. a3 {[%emt 0:07:05]} Rc8 {[%emt 0:05:42]} 12. Ne4 {[%emt 0:01:43]} Nxe4 {[%emt 0:13:15]} 13. Qxe4 {[%emt 0:00:38]} Na5 {[%emt 0:00:07]} 14. Qg4 {[%emt 0:07:21]} Bf6 {[%emt 0:02:20]} 15. Bxf6 {[%emt 0:01:41]} Qxf6 {[%emt 0:02:04]} 16. Be2 {[%emt 0:01:24]} Nc6 {[%emt 0:06:07]} 17. d4 {[%emt 0:11:55]} cxd4 {[%emt 0:00:36]} 18. Nxd4 {[%emt 0:00:05]} Ne5 {[%emt 0:02:01]} 19. Qf4 {[%emt 0:02:41]} Qxf4 {[%emt 0:08:26]} 20. exf4 {[%emt 0:00:07]} Nd7 {[%emt 0:01:16]} 21. a4 {[%emt 0:05:53]} Ke7 {[%emt 0:03:53]} 22. f5 {[%emt 0:09:43]} e5 {[%emt 0:06:24]} 23. f6+ {[%emt 0:00:43]} Kxf6 {[%emt 0:00:01]} 24. Nf5 {[%emt 0:00:09]} Rcd8 {[%emt 0:00:57]} 25. Nd6 {[%emt 0:00:59]} Ba8 {[%emt 0:00:46]} 26. Bxa6 {[%emt 0:02:35]} Nc5 {[%emt 0:00:25]} 27. Bc4 {[%emt 0:00:07]} Ne6 {[%emt 0:02:40]} 28. b4 {[%emt 0:12:55]} Rhf8 {[%emt 0:00:38]} 29. Bxe6 {[%emt 0:02:48]} Kxe6 {[%emt 0:00:19]} 30. Nc4 {[%emt 0:00:04]} b5 {[%emt 0:03:43]} 31. axb5 {[%emt 0:00:07]} Rxd1+ {[%emt 0:01:00]} 32. Rxd1 {[%emt 0:00:05]} Bd5 {[%emt 0:00:41]} 33. Nb6 {[%emt 0:02:17]} Bb3 {[%emt 0:00:09]} 34. Rd3 {[%emt 0:00:23]} Rb8 {[%emt 0:00:46]} 35. Nd7 {[%emt 0:00:47]} Bc4 {[%emt 0:00:22]} 36. Nxb8 {[%emt 0:01:24]} Bxd3 {[%emt 0:00:01]} 37. b6 {[%emt 0:00:08]} Be4 {[%emt 0:01:09]} 38. Na6 {[%emt 0:00:47]} Kd6 {[%emt 0:00:25]} 39. Nc5 {[%emt 0:00:43]} Bd5 {[%emt 0:00:11]} 40. f3 {[%emt 0:04:57]} f6 {[%emt 0:00:14]} 41. Kf2 {[%emt 0:51:09]} Kc6 {[%emt 0:05:16]} 42. b7 {[%emt 0:00:00]} Kc7 {[%emt 0:00:01]} 43. Ke3 {[%emt 0:00:00]} Bxb7 {[%emt 0:01:53]} 44. Ne6+ {[%emt 0:00:00]} Kd6 {[%emt 0:04:40]} 45. Nxg7 {[%emt 0:00:00]} Kd5 {[%emt 0:00:11]} 46. b5 {[%emt 0:00:00]} Kc5 {[%emt 0:00:55]} 47. g4 {[%emt 0:00:00]} Bc8 {[%emt 0:00:29]} 48. Ne8 {[%emt 0:00:00]} f5 {[%emt 0:00:07]} 49. g5 {[%emt 0:00:00]} Bd7 {[%emt 0:03:05]} 50. Nf6 {[%emt 0:00:00]} Bxb5 {[%emt 0:00:03]} 51. f4 {[%emt 0:00:00]} Kd6 {[%emt 0:01:00]} 52. Nxh7 {[%emt 0:00:00]} Ke6 {[%emt 0:00:33]} 53. h4 {[%emt 0:00:00]} e4 {[%emt 0:00:56]} 54. h5 {[%emt 0:00:00]} Kf7 {[%emt 0:00:14]} 55. Nf6 {[%emt 0:00:00]} Ba4 {[%emt 0:00:46]} 56. Kd4 {[%emt 0:00:00]} Bd1 {[%emt 0:00:30]} 57. h6 {[%emt 0:00:00]} Ba4 {[%emt 0:00:26]} 58. Nd5 {[%emt 0:00:00]} Bd7 {[%emt 0:01:15]} 59. Ne7 {[%emt 0:00:00]} Be6 {[%emt 0:01:39]} 60. g6+ {[%emt 0:00:00]} Kf6 {[%emt 0:00:51]} 61. g7 {[%emt 0:00:00]} 1-0

[Event "FIDE Chesscom Grand Swiss 2019"]
[Site "Douglas-Isle of Man"]
[Date "2019.10.12"]
[Round "3.32"]
[White "Akobian, Varuzhan"]
[Black "Rakotomaharo, Fy Antenaina"]
[Result "1-0"]
[ECO "B37"]
[WhiteElo "2625"]
[BlackElo "2428"]
[Annotator "RC"]
[PlyCount "83"]
[EventDate "2019.10.10"]
[EventType "swiss"]
[EventCountry "GBR"]
[SourceTitle "playchess.com"]
[Source "ChessBase"]
[SourceQuality "1"]
[TimeControl "40/6000+30:20/3000+30:900+30"]

1. Nf3 {[%emt 0:01:42]} c5 {[%emt 0:00:00]} 2. c4 {[%emt 0:01:03]} Nf6 {[%emt 0:03:18]} 3. Nc3 {[%emt 0:00:40]} Nc6 {[%emt 0:00:45]} 4. d4 {[%emt 0:03:02]} cxd4 {[%emt 0:03:56]} 5. Nxd4 {[%emt 0:00:49]} g6 {[%emt 0:00:05]} 6. Nc2 {[%emt 0:02:16]} Bg7 {[%emt 0:00:20]} 7. e4 {[%emt 0:00:06]} d6 {[%emt 0:00:10]} 8. Be2 {[%emt 0:00:11]} O-O {[%emt 0:00:06]} 9. O-O {[%emt 0:00:04]} Nd7 {[%emt 0:00:33]} 10. Bd2 {[%emt 0:14:02]} Nc5 {[%emt 0:06:26]} 11. b4 {[%emt 0:02:22]} Bxc3 {[%emt 0:01:35]} 12. Bxc3 {[%emt 0:00:07]} Nxe4 {[%emt 0:00:03]} 13. Bb2 {[%emt 0:00:13]} Be6 {[%emt 0:02:14]} 14. Qc1 {[%emt 0:05:54]} f5 {[%emt 0:07:23]} 15. Qe3 {[%emt 0:22:31]} Bf7 {[%emt 0:09:24]} 16. f3 {[%emt 0:09:11]} Nf6 {[%emt 0:00:09]} 17. Rfd1 {[%emt 0:02:15]} Qc7 {[%emt 0:08:02]} 18. Rac1 {[%emt 0:01:40]} b6 {[%emt 0:11:13]} 19. a3 {[%emt 0:00:21]} Rac8 {[%emt 0:04:38]} 20. Qg5 {[%emt 0:01:29]} Be6 {[%emt 0:07:03]} 21. Ne3 {[%emt 0:03:17]} Ne5 {[%emt 0:00:48]} 22. Qf4 {[%emt 0:01:50]} Nh5 {[%emt 0:09:27]} 23. Qd4 {[%emt 0:00:23]} f4 {[%emt 0:00:03]} 24. Nd5 {[%emt 0:00:28]} Qb7 {[%emt 0:00:43]} 25. c5 {[%emt 0:10:36]} bxc5 {[%emt 0:25:47]} 26. bxc5 {[%emt 0:01:35]} Qxd5 {[%emt 0:01:24]} 27. Qxd5 {[%emt 0:00:10]} Bxd5 {[%emt 0:00:03]} 28. Rxd5 {[%emt 0:00:13]} Nf7 {[%emt 0:00:05]} 29. c6 {[%emt 0:18:43]} Rc7 {[%emt 0:00:05]} 30. Ra5 {[%emt 0:03:19]} e5 {[%emt 0:03:15]} 31. Ra6 {[%emt 0:00:42]} Rfc8 {[%emt 0:01:22]} 32. Bb5 {[%emt 0:00:26]} Nd8 {[%emt 0:03:41]} 33. a4 {[%emt 0:00:44]} Ng7 {[%emt 0:01:47]} 34. Ba3 {[%emt 0:00:28]} Nf5 {[%emt 0:00:06]} 35. Bb4 {[%emt 0:00:30]} Nd4 {[%emt 0:00:44]} 36. Bxd6 {[%emt 0:01:10]} Rxc6 {[%emt 0:00:07]} 37. Bxc6 {[%emt 0:00:25]} Ne2+ {[%emt 0:00:25]} 38. Kf1 {[%emt 0:00:08]} Nxc1 {[%emt 0:00:04]} 39. Bd5+ {[%emt 0:00:20]} Kg7 {[%emt 0:00:18]} 40. Bxe5+ {[%emt 0:00:48]} Kf8 {[%emt 0:00:01]} 41. Rxa7 {[%emt 0:51:48]} Nc6 {[%emt 0:50:17]} 42. Bg7+ {[%emt 0:00:51]} 1-0

[Event "FIDE Chesscom Grand Swiss 2019"]
[Site "Douglas-Isle of Man"]
[Date "2019.10.12"]
[Round "3.33"]
[White "Rakhmanov, Aleksandr"]
[Black "Zatonskih, Anna"]
[Result "1-0"]
[ECO "E18"]
[WhiteElo "2621"]
[BlackElo "2422"]
[Annotator "RC"]
[PlyCount "105"]
[EventDate "2019.10.10"]
[EventType "swiss"]
[EventCountry "GBR"]
[SourceTitle "playchess.com"]
[Source "ChessBase"]
[SourceQuality "1"]
[TimeControl "40/6000+30:20/3000+30:900+30"]

1. d4 {[%emt 0:00:00]} d5 {[%emt 0:00:00]} 2. c4 {[%emt 0:00:00]} e6 {[%emt 0:00:00]} 3. Nc3 {[%emt 0:00:13]} Nf6 {[%emt 0:00:04]} 4. Nf3 {[%emt 0:02:20]} Be7 {[%emt 0:00:47]} 5. g3 {[%emt 0:00:25]} O-O {[%emt 0:17:03]} 6. Bg2 {[%emt 0:01:18]} b6 {[%emt 0:00:21]} 7. cxd5 {[%emt 0:04:45]} exd5 {[%emt 0:01:06]} 8. Ne5 {[%emt 0:07:15]} Bb7 {[%emt 0:02:53]} 9. O-O {[%emt 0:03:00]} c6 {[%emt 0:30:45]} 10. e4 {[%emt 0:15:59]} dxe4 {[%emt 0:00:20]} 11. Nxe4 {[%emt 0:01:43]} Nd5 {[%emt 0:00:19]} 12. Nc3 {[%emt 0:04:45]} Nxc3 {[%emt 0:01:15]} 13. bxc3 {[%emt 0:04:36]} Qc7 {[%emt 0:00:22]} 14. Re1 {[%emt 0:13:09]} Nd7 {[%emt 0:09:46]} 15. Nxc6 {[%emt 0:14:33]} Bxc6 {[%emt 0:02:52]} 16. d5 {[%emt 0:01:15]} Bxd5 {[%emt 0:16:43]} 17. Bf4 {[%emt 0:07:49]} Qc5 {[%emt 0:03:15]} 18. Qxd5 {[%emt 0:22:04]} Rad8 {[%emt 0:00:12]} 19. Rad1 {[%emt 0:02:27]} Nf6 {[%emt 0:04:51]} 20. Qxc5 {[%emt 0:00:17]} Bxc5 {[%emt 0:00:08]} 21. h3 {[%emt 0:01:56]} h6 {[%emt 0:01:50]} 22. g4 {[%emt 0:00:27]} Rxd1 {[%emt 0:03:19]} 23. Rxd1 {[%emt 0:00:02]} Re8 {[%emt 0:00:12]} 24. Kf1 {[%emt 0:00:17]} g5 {[%emt 0:00:49]} 25. Bc1 {[%emt 0:01:04]} Ne4 {[%emt 0:04:20]} 26. Re1 {[%emt 0:00:24]} Nd6 {[%emt 0:00:05]} 27. Rxe8+ {[%emt 0:00:15]} Nxe8 {[%emt 0:00:02]} 28. f4 {[%emt 0:00:12]} f6 {[%emt 0:00:25]} 29. Ke2 {[%emt 0:00:30]} Kf7 {[%emt 0:00:29]} 30. Bd2 {[%emt 0:00:44]} Nd6 {[%emt 0:01:20]} 31. Bd5+ {[%emt 0:00:07]} Ke7 {[%emt 0:00:57]} 32. c4 {[%emt 0:01:05]} Bd4 {[%emt 0:01:16]} 33. Kf3 {[%emt 0:00:18]} Bg1 {[%emt 0:05:07]} 34. Kg3 {[%emt 0:00:53]} Kf8 {[%emt 0:00:50]} 35. h4 {[%emt 0:00:27]} gxh4+ {[%emt 0:01:13]} 36. Kxh4 {[%emt 0:00:04]} f5 {[%emt 0:00:54]} 37. g5 {[%emt 0:00:37]} hxg5+ {[%emt 0:00:42]} 38. fxg5 {[%emt 0:00:07]} Ne4 {[%emt 0:01:11]} 39. Bf4 {[%emt 0:00:23]} Kg7 {[%emt 0:00:33]} 40. Kh5 {[%emt 0:00:23]} Bd4 {[%emt 0:00:28]} 41. Be6 {[%emt 0:06:13]} Nc3 {[%emt 0:05:30]} 42. a3 {[%emt 0:00:32]} Nb1 {[%emt 0:26:51]} 43. Bd6 {[%emt 0:08:17]} Bb2 {[%emt 0:04:29]} 44. a4 {[%emt 0:10:59]} Nd2 {[%emt 0:05:58]} 45. Bb8 {[%emt 0:09:30]} a5 {[%emt 0:01:19]} 46. Bf4 {[%emt 0:00:23]} Nf3 {[%emt 0:03:56]} 47. Bc7 {[%emt 0:06:48]} Bd4 {[%emt 0:00:46]} 48. Bxf5 {[%emt 0:00:12]} Ne5 {[%emt 0:01:54]} 49. Be6 {[%emt 0:03:02]} Kh7 {[%emt 0:02:19]} 50. c5 {[%emt 0:02:24]} bxc5 {[%emt 0:00:14]} 51. Bxa5 {[%emt 0:00:04]} Kg7 {[%emt 0:02:31]} 52. Bc7 {[%emt 0:02:10]} Nd3 {[%emt 0:00:34]} 53. a5 {[%emt 0:00:23]} 1-0

[Event "FIDE Chesscom Grand Swiss 2019"]
[Site "Douglas-Isle of Man"]
[Date "2019.10.12"]
[Round "3.34"]
[White "Hansen, Eric"]
[Black "Solomon, Kenny"]
[Result "1-0"]
[ECO "C54"]
[WhiteElo "2611"]
[BlackElo "2382"]
[Annotator "ChessBase"]
[PlyCount "135"]
[EventDate "2019.10.10"]
[EventType "swiss"]
[EventCountry "GBR"]
[SourceTitle "playchess.com"]
[Source "ChessBase"]
[SourceQuality "1"]
[TimeControl "40/6000+30:20/3000+30:900+30"]

1. e4 {[%emt 0:06:40]} e5 {[%emt 0:00:00]} 2. Nf3 {[%emt 0:00:21]} Nc6 {[%emt 0:00:00]} 3. Bc4 {[%emt 0:00:47]} Bc5 {[%emt 0:00:13]} 4. c3 {[%emt 0:00:05]} Nf6 {[%emt 0:00:05]} 5. d3 {[%emt 0:00:19]} d6 {[%emt 0:00:21]} 6. a4 {[%emt 0:02:43]} a6 {[%emt 0:00:08]} 7. O-O {[%emt 0:00:17]} Ba7 {[%emt 0:06:03]} 8. Re1 {[%emt 0:05:26]} O-O {[%emt 0:02:54]} 9. h3 {[%emt 0:04:01]} h6 {[%emt 0:01:11]} 10. Nbd2 {[%emt 0:07:27]} Re8 {[%emt 0:03:08]} 11. Nf1 {[%emt 0:23:49]} Be6 {[%emt 0:05:37]} 12. Bxe6 {[%emt 0:03:57]} Rxe6 {[%emt 0:00:50]} 13. Ng3 {[%emt 0:00:42]} d5 {[%emt 0:12:43]} 14. Qc2 {[%emt 0:04:22]} Qd7 {[%emt 0:09:36]} 15. b4 {[%emt 0:08:47]} Rae8 {[%emt 0:22:55]} 16. Qb3 {[%emt 0:12:58]} Ne7 {[%emt 0:06:11]} 17. Ra2 {[%emt 0:04:09]} Ng6 {[%emt 0:04:05]} 18. Nf5 {[%emt 0:05:16]} c6 {[%emt 0:04:42]} 19. c4 {[%emt 0:01:31]} Rd8 {[%emt 0:02:11]} 20. Rae2 {[%emt 0:03:41]} Ree8 {[%emt 0:03:09]} 21. c5 {[%emt 0:07:18]} Bb8 {[%emt 0:06:27]} 22. Qc2 {[%emt 0:00:18]} Nf4 {[%emt 0:04:11]} 23. Bxf4 {[%emt 0:00:25]} exf4 {[%emt 0:00:02]} 24. Qb2 {[%emt 0:05:57]} Nh5 {[%emt 0:07:55]} 25. Rd2 {[%emt 0:00:08]} Kh7 {[%emt 0:01:01]} 26. N5d4 {[%emt 0:00:56]} g6 {[%emt 0:02:33]} 27. e5 {[%emt 0:00:35]} Re7 {[%emt 0:00:42]} 28. Rde2 {[%emt 0:00:13]} Rde8 {[%emt 0:00:15]} 29. Qd2 {[%emt 0:00:44]} g5 {[%emt 0:00:33]} 30. e6 {[%emt 0:00:34]} fxe6 {[%emt 0:00:26]} 31. Ne5 {[%emt 0:00:01]} Bxe5 {[%emt 0:00:17]} 32. Rxe5 {[%emt 0:00:02]} Ng7 {[%emt 0:00:47]} 33. Qe2 {[%emt 0:00:08]} Rf7 {[%emt 0:02:27]} 34. h4 {[%emt 0:00:10]} gxh4 {[%emt 0:01:07]} 35. Qg4 {[%emt 0:00:04]} Qd8 {[%emt 0:01:03]} 36. Nf3 {[%emt 0:01:20]} Rg8 {[%emt 0:00:49]} 37. Qh3 {[%emt 0:01:19]} Qf6 {[%emt 0:01:03]} 38. d4 {[%emt 0:00:35]} Re8 {[%emt 0:00:45]} 39. Nxh4 {[%emt 0:00:03]} Rfe7 {[%emt 0:00:15]} 40. b5 {[%emt 0:01:17]} axb5 {[%emt 0:00:19]} 41. axb5 {[%emt 0:50:05]} Kg8 {[%emt 0:06:36]} 42. Kh2 {[%emt 0:00:00]} Ra8 {[%emt 0:04:25]} 43. Qg4 {[%emt 0:00:00]} Kh7 {[%emt 0:06:54]} 44. bxc6 {[%emt 0:00:00]} bxc6 {[%emt 0:00:05]} 45. Rb1 {[%emt 0:00:00]} Rg8 {[%emt 0:06:03]} 46. Qh3 {[%emt 0:00:00]} Rf7 {[%emt 0:08:43]} 47. Rbe1 {[%emt 0:00:00]} Re8 {[%emt 0:07:29]} 48. Nf3 {[%emt 0:00:00]} Kg8 {[%emt 0:00:48]} 49. Qg4 {[%emt 0:01:20]} Kh7 {[%emt 0:00:15]} 50. Qh3 {[%emt 0:01:35]} Kg8 {[%emt 0:00:05]} 51. Qg4 {[%emt 0:02:24]} Kh7 {[%emt 0:00:16]} 52. Kg1 {[%emt 0:00:23]} Rb7 {[%emt 0:04:09]} 53. Nh4 {[%emt 0:00:40]} Rb4 {[%emt 0:03:25]} 54. Nf3 {[%emt 0:00:13]} Rb7 {[%emt 0:00:52]} 55. R5e2 {[%emt 0:00:25]} Rg8 {[%emt 0:01:46]} 56. Qh3 {[%emt 0:00:23]} Re8 {[%emt 0:04:21]} 57. Ne5 {[%emt 0:00:18]} Rc7 {[%emt 0:01:08]} 58. Ng4 {[%emt 0:01:12]} Qg6 {[%emt 0:00:26]} 59. Ne5 {[%emt 0:00:35]} Qf5 {[%emt 0:00:29]} 60. Qf3 {[%emt 0:00:29]} Rb8 {[%emt 0:01:03]} 61. Nd3 {[%emt 0:07:17]} Rf7 {[%emt 0:00:10]} 62. Ne5 {[%emt 0:03:31]} Rc7 {[%emt 0:01:56]} 63. Qc3 {[%emt 0:03:10]} Nh5 {[%emt 0:03:42]} 64. Nf3 {[%emt 0:02:18]} Rg7 {[%emt 0:08:09]} 65. Rxe6 {[%emt 0:01:10]} Nf6 {[%emt 0:04:42]} 66. Nh4 {[%emt 0:00:21]} Qg5 {[%emt 0:00:31]} 67. Qh3 {[%emt 0:00:18]} Ne4 {[%emt 0:00:32]} 68. Nf3 {[%emt 0:00:13]} 1-0

[Event "FIDE Chesscom Grand Swiss 2019"]
[Site "Douglas-Isle of Man"]
[Date "2019.10.12"]
[Round "3.35"]
[White "Nihal Sarin"]
[Black "Nebolsina, Vera"]
[Result "1-0"]
[ECO "A45"]
[WhiteElo "2610"]
[BlackElo "2252"]
[Annotator "ChessBase"]
[PlyCount "49"]
[EventDate "2019.10.10"]
[EventType "swiss"]
[EventCountry "GBR"]
[SourceTitle "playchess.com"]
[Source "ChessBase"]
[SourceQuality "1"]
[TimeControl "40/6000+30:20/3000+30:900+30"]

1. d4 {[%emt 0:00:00]} Nf6 {[%emt 0:00:00]} 2. Bf4 {[%emt 0:00:05]} g6 {[%emt 0:00:16]} 3. Nc3 {[%emt 0:00:16]} d5 {[%emt 0:00:07]} 4. e3 {[%emt 0:00:14]} Bg7 {[%emt 0:00:33]} 5. h4 {[%emt 0:00:17]} h5 {[%emt 0:00:26]} 6. Nf3 {[%emt 0:00:56]} O-O {[%emt 0:00:35]} 7. Ne5 {[%emt 0:04:46]} c6 {[%emt 0:09:29]} 8. Be2 {[%emt 0:06:53]} Nfd7 {[%emt 0:15:47]} 9. g4 {[%emt 0:29:36]} Nxe5 {[%emt 0:00:35]} 10. Bxe5 {[%emt 0:01:20]} Bxg4 {[%emt 0:04:48]} 11. Bxg4 {[%emt 0:00:18]} hxg4 {[%emt 0:00:07]} 12. Qxg4 {[%emt 0:03:19]} Nd7 {[%emt 0:31:50]} 13. f4 {[%emt 0:15:43]} Qc8 {[%emt 0:00:00]} 14. Qg3 {[%emt 0:15:01]} f6 {[%emt 0:07:47]} 15. h5 {[%emt 0:04:01]} gxh5 {[%emt 0:03:44]} 16. O-O-O {[%emt 0:03:35]} fxe5 {[%emt 0:01:57]} 17. Rdg1 {[%emt 0:02:17]} Rf7 {[%emt 0:00:08]} 18. dxe5 {[%emt 0:06:00]} Nxe5 {[%emt 0:16:36]} 19. Rxh5 {[%emt 0:04:17]} Ng4 {[%emt 0:10:42]} 20. Qh4 {[%emt 0:02:11]} e5 {[%emt 0:02:20]} 21. Rxg4 {[%emt 0:00:26]} Kf8 {[%emt 0:00:04]} 22. Rxg7 {[%emt 0:00:24]} Rxg7 {[%emt 0:00:11]} 23. Rh8+ {[%emt 0:00:07]} Kf7 {[%emt 0:00:05]} 24. Qh5+ {[%emt 0:00:09]} Ke7 {[%emt 0:00:39]} 25. Qxe5+ {[%emt 0:00:06]} 1-0

[Event "FIDE Chesscom Grand Swiss 2019"]
[Site "Douglas-Isle of Man"]
[Date "2019.10.12"]
[Round "3.37"]
[White "Zhang, Zhong"]
[Black "Jansa, Vlastimil"]
[Result "1-0"]
[ECO "D99"]
[WhiteElo "2636"]
[BlackElo "2452"]
[Annotator "RC"]
[PlyCount "73"]
[EventDate "2019.10.10"]
[EventType "swiss"]
[EventCountry "GBR"]
[SourceTitle "playchess.com"]
[Source "ChessBase"]
[SourceQuality "1"]
[TimeControl "40/6000+30:20/3000+30:900+30"]

1. Nf3 {[%emt 0:00:00]} Nf6 {[%emt 0:00:00]} 2. c4 {[%emt 0:00:00]} g6 {[%emt 0:00:00]} 3. Nc3 {[%emt 0:00:00]} d5 {[%emt 0:00:07]} 4. cxd5 {[%emt 0:00:11]} Nxd5 {[%emt 0:00:05]} 5. Qb3 {[%emt 0:00:06]} Nb6 {[%emt 0:01:43]} 6. d4 {[%emt 0:00:16]} Bg7 {[%emt 0:00:41]} 7. e4 {[%emt 0:00:16]} O-O {[%emt 0:01:30]} 8. Be3 {[%emt 0:00:20]} Bg4 {[%emt 0:06:12]} 9. Rd1 {[%emt 0:00:25]} e6 {[%emt 0:01:51]} 10. Be2 {[%emt 0:07:35]} Nc6 {[%emt 0:00:31]} 11. e5 {[%emt 0:00:23]} h6 {[%emt 0:12:38]} 12. h3 {[%emt 0:02:09]} Bxf3 {[%emt 0:01:42]} 13. Bxf3 {[%emt 0:00:08]} Ne7 {[%emt 0:04:56]} 14. O-O {[%emt 0:06:19]} c6 {[%emt 0:03:03]} 15. Ne4 {[%emt 0:01:54]} Nf5 {[%emt 0:03:55]} 16. g4 {[%emt 0:34:43]} Nxe3 {[%emt 0:02:16]} 17. fxe3 {[%emt 0:00:04]} Nd5 {[%emt 0:04:29]} 18. Bg2 {[%emt 0:01:41]} Qb6 {[%emt 0:12:54]} 19. Rd3 {[%emt 0:01:31]} Rfd8 {[%emt 0:07:09]} 20. a3 {[%emt 0:04:51]} Bf8 {[%emt 0:06:13]} 21. Qc2 {[%emt 0:01:02]} a5 {[%emt 0:06:47]} 22. h4 {[%emt 0:05:52]} Rac8 {[%emt 0:03:11]} 23. Qf2 {[%emt 0:03:31]} Qc7 {[%emt 0:06:41]} 24. g5 {[%emt 0:01:14]} h5 {[%emt 0:01:30]} 25. Bh3 {[%emt 0:04:19]} Rd7 {[%emt 0:04:17]} 26. Qg3 {[%emt 0:04:25]} Re8 {[%emt 0:08:05]} 27. Rd2 {[%emt 0:02:49]} b6 {[%emt 0:02:44]} 28. Rf3 {[%emt 0:01:30]} Kh8 {[%emt 0:02:24]} 29. Bf1 {[%emt 0:01:07]} b5 {[%emt 0:02:41]} 30. Rc2 {[%emt 0:02:18]} Qb6 {[%emt 0:00:42]} 31. Rcf2 {[%emt 0:02:30]} Kg8 {[%emt 0:00:41]} 32. Bd3 {[%emt 0:00:50]} c5 {[%emt 0:01:46]} 33. Nf6+ {[%emt 0:03:13]} Nxf6 {[%emt 0:00:08]} 34. gxf6 {[%emt 0:00:03]} cxd4 {[%emt 0:01:09]} 35. Bxg6 {[%emt 0:00:03]} dxe3 {[%emt 0:01:01]} 36. Bxf7+ {[%emt 0:01:59]} Kxf7 {[%emt 0:00:22]} 37. Rg2 {[%emt 0:00:12]} 1-0